bitfinex/quotes_ETHUSD_20250626
["timestamp","ask_amount","ask_price","bid_price","bid_amount"]
[1750970091219,1.51594313,2451.2,2450.8,0.204]
[1750970092529,5.59567818,2451.2,2450.8,0.204]
[1750970092828,0.2032,2451.0,2450.6,0.204]
[1750970094613,0.2032,2451.0,2450.7,0.96573524]
[1750970094800,0.2032,2451.0,2450.6,0.204]
[1750970094995,1.72182431,2451.0,2450.3,1.20873044]
[1750970095220,0.204,2450.9,2450.4,1.16997649]
[1750970095425,0.204,2450.9,2450.5,0.96597649]
[1750970095600,0.204,2450.9,2450.6,0.96597649]
[1750970095798,1.22774637,2450.9,2450.4,0.204]
[1750970096114,5.30788597,2450.9,2450.5,0.96607517]
[1750970096462,1.22774637,2450.9,2450.6,0.96611897]
[1750970096602,1.22774637,2450.9,2450.4,0.204]
[1750970096800,1.22774637,2450.9,2450.5,0.96606339]
[1750970097133,1.22774637,2450.9,2450.6,0.96606339]
[1750970097427,0.70296523,2450.8,2450.7,0.96607454]
[1750970097810,0.70296523,2450.8,2450.4,0.204]
[1750970098027,0.70296523,2450.8,2450.5,0.966078]
[1750970098209,0.70296523,2450.8,2450.6,0.966078]
[1750970098410,0.70296523,2450.8,2450.4,0.204]
[1750970098731,0.70296523,2450.8,2450.5,0.96619845]
[1750970099035,0.70296523,2450.8,2450.6,0.96619845]
[1750970099211,0.70296523,2450.8,2450.7,0.96635903]
[1750970099533,1.22774637,2450.9,2450.7,0.96635903]
[1750970099734,1.22774637,2450.9,2450.4,1.41273044]
[1750970099933,1.22774637,2450.9,2450.5,0.96634079]
[1750970100113,1.22774637,2450.9,2450.6,0.96634079]
[1750970100337,1.22774637,2450.9,2450.7,0.96634079]
[1750970100552,1.22774637,2450.9,2450.4,1.41273044]
[1750970100756,1.22774637,2450.9,2450.5,0.96616838]
[1750970100924,1.22774637,2450.9,2450.6,0.96616838]
[1750970101125,8.22874637,2450.9,2450.7,0.96616838]
[1750970101358,8.22874637,2450.9,2450.4,1.41273044]
[1750970101359,7.205,2450.9,2450.4,1.41273044]
[1750970101657,7.87,2451.1,2450.8,0.204]
[1750970101956,8.0145,2451.4,2450.9,0.96575609]
[1750970102253,7.2062,2451.4,2451.0,1.95470979]
[1750970102559,7.2062,2451.4,2451.0,0.9891]
[1750970102738,9.78888,2451.4,2451.0,0.9891]
[1750970103648,2.78588,2451.4,2451.0,0.9891]
[1750970103844,0.22,2451.3,2451.0,0.9891]
[1750970104022,0.22,2451.3,2451.2,0.2032]
[1750970105939,0.4232,2451.6,2451.3,0.8175]
[1750970106230,0.22,2451.6,2451.3,0.8175]
[1750970106424,0.22,2451.6,2451.5,0.2032]
[1750970107758,0.22,2451.6,2450.8,1.20873044]
[1750970107944,6.995,2451.8,2450.9,1.77470442]
[1750970107945,0.4232,2451.5,2450.9,1.77470442]
[1750970108144,0.2032,2451.3,2450.9,1.0132]
[1750970109155,0.2032,2451.3,2451.0,0.96552219]
[1750970109335,0.2032,2451.3,2450.9,1.0132]
[1750970109658,5.47948649,2451.5,2451.0,1.72298418]
[1750970109659,0.22,2451.5,2451.0,1.72298418]
[1750970109859,0.22,2451.5,2451.1,0.96518418]
[1750970110065,0.22,2451.5,2451.0,0.7578]
[1750970110527,0.55,2451.4,2450.8,0.8132]
[1750970110731,0.55,2451.4,2450.6,10.0]
[1750970110732,1.3006,2451.2,2450.9,0.96485746]
[1750970111043,4.0800841,2451.0,2450.5,1.20873044]
[1750970111356,0.22,2450.9,2450.6,0.96521396]
[1750970111664,4.83090031,2450.8,2450.7,0.96521396]
[1750970112032,4.83090031,2450.8,2450.6,0.96521396]
[1750970112228,4.83090031,2450.8,2450.7,0.96521396]
[1750970113346,4.83090031,2450.8,2450.7,2.1739444]
[1750970113649,7.25600685,2450.8,2450.7,2.1739444]
[1750970113967,7.25600685,2450.8,2450.7,0.96521396]
[1750970114267,3.17570654,2450.8,2450.7,0.96521396]
[1750970114628,7.25600685,2450.8,2450.7,0.96521396]
[1750970116272,7.25600685,2450.8,2450.6,0.96521396]
[1750970116477,7.25600685,2450.8,2450.7,0.96521396]
[1750970116673,7.25600685,2450.8,2450.5,0.96521396]
[1750970116830,4.08047925,2450.7,2450.6,0.96521396]
[1750970117840,5.80711369,2450.7,2450.6,0.96521396]
[1750970118064,6.02719329,2450.7,2450.4,0.96521396]
[1750970118246,4.08068232,2450.6,2450.5,0.96521396]
[1750970118881,4.63068232,2450.6,2450.5,0.96521396]
[1750970119040,5.43044006,2450.3,2450.0,1.20873044]
[1750970119236,0.22,2450.2,2450.1,0.96819412]
[1750970119568,4.50529948,2450.2,2450.1,0.96819412]
[1750970120039,0.424,2450.2,2450.1,0.96819412]
[1750970120561,5.99384959,2450.2,2450.1,0.96819412]
[1750970120942,12.95784959,2450.2,2450.1,0.96819412]
[1750970121550,12.95784959,2450.2,2449.7,0.002]
[1750970121551,4.08188435,2449.9,2449.7,1.21073044]
[1750970121752,21.59488435,2449.9,2449.8,0.9674323]
[1750970121960,22.80237279,2449.9,2449.8,0.9674323]
[1750970122167,23.02237279,2449.9,2449.8,0.9674323]
[1750970122368,4.83596587,2449.8,2449.7,0.002]
[1750970122571,5.05596587,2449.8,2449.7,0.9690927]
[1750970122770,5.05596587,2449.8,2449.7,0.002]
[1750970123762,7.7867798,2449.8,2449.7,0.002]
[1750970125181,17.7867798,2449.8,2449.7,0.002]
[1750970125759,25.6567798,2449.8,2449.7,0.002]
[1750970125963,26.4204798,2449.8,2449.7,0.002]
[1750970129350,27.7954798,2449.8,2449.7,0.002]
[1750970129583,35.2864798,2449.8,2449.7,0.002]
[1750970129787,26.4204798,2449.8,2449.7,0.002]
[1750970130080,32.5977798,2449.8,2449.7,0.002]
[1750970130791,28.51581393,2449.8,2449.7,0.002]
[1750970131082,25.785,2449.8,2449.7,0.002]
[1750970132579,29.86696587,2449.8,2449.7,0.002]
[1750970132971,15.226,2449.8,2449.7,0.002]
[1750970133279,8.09,2449.8,2449.7,0.7878]
[1750970133579,8.09,2449.8,2449.7,0.9918]
[1750970134079,4.08105453,2450.4,2449.8,0.778]
[1750970134080,0.22,2450.1,2449.8,0.778]
[1750970134579,0.22,2450.1,2450.0,0.204]
[1750970137811,0.22,2450.1,2449.9,0.204]
[1750970138655,0.204,2450.3,2449.9,0.204]
[1750970138656,0.424,2450.3,2449.9,0.204]
[1750970141183,4.50516769,2450.3,2449.9,0.204]
[1750970141585,4.08134459,2450.2,2449.9,0.204]
[1750970141889,4.08146606,2450.1,2449.8,0.778]
[1750970142107,0.204,2450.0,2449.7,0.002]
[1750970144571,0.22,2449.9,2449.7,0.002]
[1750970145174,0.22,2449.9,2449.8,0.96762828]
[1750970147499,0.22,2449.9,2449.8,1.99252828]
[1750970147673,0.22,2449.9,2449.8,2.31285415]
[1750970150559,0.22,2450.1,2449.8,2.31285415]
[1750970150762,0.22,2450.1,2449.9,0.96762828]
[1750970151892,0.22,2450.1,2450.0,0.96762828]
[1750970152110,0.22,2450.1,2449.8,1.0249]
[1750970152269,0.22,2450.1,2449.9,0.96894442]
[1750970152588,0.22,2450.1,2449.8,1.0249]
[1750970152789,0.22,2450.1,2449.9,0.96888278]
[1750970152993,0.22,2450.1,2449.8,1.0249]
[1750970153291,0.22,2450.1,2449.9,0.9688733]
[1750970153493,0.22,2450.1,2449.8,1.0249]
[1750970153692,0.22,2450.1,2449.9,0.96881514]
[1750970153904,0.22,2450.1,2449.8,1.0249]
[1750970154105,0.22,2450.1,2449.9,0.96881972]
[1750970154304,0.22,2450.1,2449.8,1.0249]
[1750970154505,0.22,2450.1,2449.9,0.96890531]
[1750970154700,0.22,2450.1,2449.8,1.0249]
[1750970154882,0.22,2450.1,2449.9,0.96896991]
[1750970155077,0.22,2450.1,2449.8,1.0249]
[1750970155292,0.22,2450.1,2449.9,0.96894539]
[1750970155605,0.22,2450.1,2449.8,1.0249]
[1750970155792,0.22,2450.1,2449.9,0.96902967]
[1750970155992,0.22,2450.1,2449.8,1.0249]
[1750970156294,0.22,2450.1,2449.9,0.96921573]
[1750970156492,0.22,2450.1,2449.8,1.0249]
[1750970156694,0.22,2450.1,2449.9,0.96926508]
[1750970156901,0.22,2450.1,2449.8,1.0249]
[1750970157108,0.22,2450.1,2449.9,0.96936174]
[1750970157283,0.22,2450.1,2450.0,0.96936174]
[1750970157800,0.22,2450.1,2449.9,0.96936174]
[1750970158109,0.22,2450.1,2450.0,0.96936174]
[1750970158601,0.22,2450.1,2449.9,0.96936174]
[1750970158803,0.22,2450.1,2450.0,0.96936174]
[1750970159015,0.22,2450.1,2449.9,0.96936174]
[1750970159210,0.22,2450.1,2450.0,0.96936174]
[1750970161788,0.22,2450.1,2450.0,9.88563888]
[1750970162106,0.22,2450.1,2450.0,11.09436932]
[1750970163209,0.22,2450.1,2450.0,11.89566932]
[1750970163611,0.22,2450.3,2450.0,11.89566932]
[1750970163776,0.22,2450.3,2450.1,0.96936174]
[1750970163982,0.22,2450.3,2450.0,10.92630758]
[1750970163983,0.22,2450.3,2450.2,1.17336174]
[1750970164178,0.22,2450.5,2450.2,2.38209218]
[1750970164392,0.22,2450.5,2450.3,0.96936174]
[1750970164614,0.22,2450.5,2450.4,0.96936174]
[1750970166015,0.22,2450.5,2450.4,3.05206875]
[1750970166223,0.22,2450.5,2450.4,14.26079919]
[1750970166536,0.22,2450.5,2450.4,14.89006875]
[1750970166679,0.22,2450.5,2450.4,16.50060578]
[1750970167215,0.22,2450.5,2450.4,17.3111687]
[1750970168416,0.22,2450.5,2450.4,14.89006875]
[1750970170127,0.22,2450.5,2450.4,16.50147326]
[1750970170316,0.22,2450.5,2450.4,14.89006875]
[1750970170827,0.22,2450.5,2450.4,16.50147326]
[1750970171031,0.22,2450.5,2450.4,14.89006875]
[1750970171194,0.22,2451.0,2450.4,14.89006875]
[1750970171549,0.22,2451.3,2450.6,8.39197792]
[1750970171727,0.22,2451.3,2450.7,0.96936174]
[1750970171902,0.22,2451.3,2450.9,0.2032]
[1750970172989,4.29957487,2451.3,2450.9,0.2032]
[1750970173233,0.22,2451.3,2450.9,0.2032]
[1750970173428,4.29951991,2451.3,2450.9,0.2032]
[1750970173600,6.22991901,2451.3,2450.8,0.204]
[1750970174526,2.1503991,2451.3,2450.8,0.204]
[1750970174925,6.22993183,2451.3,2450.8,0.204]
[1750970176256,4.07965824,2451.2,2450.8,0.204]
[1750970176756,0.55,2451.1,2450.8,0.204]
[1750970176949,0.204,2450.9,2450.5,0.204]
[1750970177126,0.22,2450.8,2450.6,0.96510171]
[1750970177327,0.22,2450.8,2450.7,0.96510171]
[1750970178738,0.22,2450.8,2450.5,0.204]
[1750970178933,0.22,2450.8,2450.6,0.96471579]
[1750970179136,0.22,2450.8,2450.5,0.204]
[1750970179442,0.22,2450.8,2450.6,0.96469982]
[1750970179622,0.22,2450.8,2450.5,0.204]
[1750970179922,0.22,2450.8,2450.6,0.96461339]
[1750970180124,0.22,2450.8,2450.5,0.204]
[1750970180341,0.22,2450.8,2450.6,0.96466785]
[1750970180642,0.22,2450.8,2450.5,0.204]
[1750970180822,0.22,2450.8,2450.6,0.96463873]
[1750970181022,0.22,2450.8,2450.5,0.204]
[1750970181235,0.22,2450.8,2450.6,0.96460588]
[1750970181424,0.22,2450.8,2450.5,0.204]
[1750970181612,0.22,2450.8,2450.6,0.9646742]
[1750970181815,0.22,2450.8,2450.5,0.204]
[1750970182018,0.22,2450.8,2450.6,0.9646333]
[1750970182228,0.22,2450.8,2450.7,0.9646333]
[1750970183465,0.22,2450.8,2450.5,0.204]
[1750970186326,0.22,2450.8,2450.6,0.96542473]
[1750970186623,0.22,2450.8,2450.5,0.204]
[1750970186826,0.22,2450.8,2450.6,0.96529321]
[1750970187026,0.22,2450.8,2450.7,0.96534395]
[1750970187263,0.22,2450.8,2450.7,9.35732187]
[1750970187469,0.22,2450.8,2450.7,11.27415406]
[1750970188937,0.22,2451.2,2450.7,11.27415406]
[1750970189273,4.62902206,2451.6,2450.7,11.27415406]
[1750970189274,0.8304,2452.2,2451.0,9.59959355]
[1750970189482,0.8304,2452.2,2451.6,8.39197792]
[1750970189483,0.2032,2452.1,2451.6,8.39197792]
[1750970189629,0.2032,2452.1,2451.6,8.59517792]
[1750970189835,0.71434574,2452.1,2451.6,8.59517792]
[1750970190248,0.2032,2452.1,2451.6,8.59517792]
[1750970190855,0.2032,2452.1,2451.7,0.96436715]
[1750970191062,0.2032,2452.1,2451.6,0.2032]
[1750970192368,4.28135112,2452.1,2451.6,0.2032]
[1750970192567,0.7553,2451.9,2451.3,1.20761563]
[1750970192874,0.7553,2451.5,2451.1,1.61140451]
[1750970193070,5.98402752,2451.5,2451.0,2.62429995]
[1750970193390,1.90480735,2451.5,2451.2,0.96537054]
[1750970193565,1.90480735,2451.5,2451.3,0.96537054]
[1750970193738,5.98396068,2451.5,2451.0,1.40991317]
[1750970194131,0.9585,2451.5,2451.1,0.96544017]
[1750970194239,0.9585,2451.5,2451.2,0.96544017]
[1750970194573,0.9585,2451.5,2451.3,0.96544017]
[1750970194756,0.9585,2451.5,2451.0,1.40991317]
[1750970194947,0.9585,2451.5,2451.1,0.96552358]
[1750970195151,0.9585,2451.5,2451.2,0.96552358]
[1750970195373,0.9585,2451.5,2451.0,0.2032]
[1750970195669,0.9585,2451.5,2451.1,0.96580797]
[1750970195670,5.03777189,2451.5,2451.1,0.96580797]
[1750970195856,0.91167599,2451.4,2451.2,0.96580797]
[1750970196061,0.91167599,2451.4,2451.0,0.2032]
[1750970196262,0.91167599,2451.4,2451.1,0.96585669]
[1750970196463,0.9585,2451.5,2451.2,0.96585669]
[1750970196681,0.9585,2451.5,2451.0,0.2032]
[1750970196887,0.9585,2451.5,2451.1,0.96600596]
[1750970197185,0.9585,2451.5,2451.2,0.96600596]
[1750970197374,0.9585,2451.5,2451.0,0.2032]
[1750970197572,1.92513428,2451.5,2451.1,0.96601701]
[1750970197753,1.92513428,2451.5,2451.2,0.96601701]
[1750970198080,6.00431431,2451.5,2451.0,0.2032]
[1750970198249,6.00431431,2451.5,2451.1,0.96600751]
[1750970198451,4.62946803,2451.3,2450.8,1.20671317]
[1750970198663,4.28291459,2451.2,2450.9,0.96605575]
[1750970198863,4.28283492,2451.2,2451.0,0.96605575]
[1750970199070,0.2032,2451.2,2450.7,1.41071317]
[1750970199382,0.783,2451.3,2450.8,0.96623039]
[1750970199586,0.783,2451.3,2450.9,1.16943039]
[1750970199791,0.783,2451.3,2451.0,0.96623039]
[1750970199950,0.2032,2451.0,2450.7,1.20671317]
[1750970200154,0.783,2451.3,2450.8,2.17299383]
[1750970200406,0.2032,2451.2,2450.9,0.96628066]
[1750970200571,0.2032,2451.2,2450.8,1.20671317]
[1750970200572,0.2032,2451.2,2451.0,0.96628066]
[1750970200749,4.0796442,2451.2,2450.8,1.20671317]
[1750970200955,4.0796442,2451.2,2450.9,0.96630944]
[1750970201165,4.0796442,2451.2,2451.0,0.96630944]
[1750970201366,5.02246914,2451.2,2450.7,1.20671317]
[1750970201593,5.02246914,2451.2,2450.8,0.96645023]
[1750970201807,5.02246914,2451.2,2450.9,0.96645023]
[1750970202008,5.02246914,2451.2,2450.6,1.20671317]
[1750970202180,0.783,2451.3,2450.7,2.17329509]
[1750970202379,0.783,2451.3,2450.8,0.96658192]
[1750970202580,0.783,2451.3,2450.9,0.96658192]
[1750970202891,0.783,2451.3,2451.0,0.96658192]
[1750970203073,0.783,2451.3,2450.7,1.20671317]
[1750970203074,1.67715523,2451.3,2450.7,1.20671317]
[1750970203276,1.67715523,2451.3,2450.8,0.96684604]
[1750970203473,1.67715523,2451.3,2450.9,0.96684604]
[1750970203712,1.67715523,2451.3,2451.0,0.96684604]
[1750970203895,1.67715523,2451.3,2450.7,1.20671317]
[1750970204207,1.67715523,2451.3,2450.8,0.96683276]
[1750970204409,1.67715523,2451.3,2450.9,0.96683276]
[1750970204614,0.55,2451.2,2451.0,0.96683276]
[1750970204910,0.22271552,2451.1,2450.5,1.20671317]
[1750970205100,1.3284,2451.2,2450.5,1.20671317]
[1750970205101,1.3284,2451.2,2450.6,0.96698785]
[1750970205279,1.3284,2451.2,2450.7,0.96698785]
[1750970205481,1.3284,2451.2,2450.8,0.96698785]
[1750970205680,1.3284,2451.2,2450.5,1.20671317]
[1750970206031,1.3284,2451.2,2450.6,0.96691164]
[1750970206191,3.74559585,2451.2,2450.7,0.96691164]
[1750970206393,3.74559585,2451.2,2450.8,0.96691164]
[1750970206711,3.74559585,2451.2,2450.9,0.96691164]
[1750970206912,3.74559585,2451.2,2450.6,1.20671317]
[1750970207096,3.74559585,2451.2,2450.7,0.96666519]
[1750970207414,3.74559585,2451.2,2450.8,0.96666519]
[1750970207617,3.74559585,2451.2,2450.9,0.96666519]
[1750970207814,3.74559585,2451.2,2450.6,1.20671317]
[1750970208000,3.74559585,2451.2,2450.7,0.96664582]
[1750970208198,3.74559585,2451.2,2450.8,0.96664582]
[1750970208399,3.74559585,2451.2,2450.9,0.96664582]
[1750970208714,3.74559585,2451.2,2450.6,1.20671317]
[1750970208896,3.74559585,2451.2,2450.7,0.96672765]
[1750970209097,3.74559585,2451.2,2450.8,0.96672765]
[1750970209319,3.74559585,2451.2,2450.9,0.96672765]
[1750970209615,11.61559585,2451.2,2450.6,1.20671317]
[1750970209819,11.61559585,2451.2,2450.7,0.96670522]
[1750970210119,11.61559585,2451.2,2450.8,0.96670522]
[1750970210321,11.61559585,2451.2,2450.9,0.96670522]
[1750970210523,11.61559585,2451.2,2450.6,1.20671317]
[1750970210692,0.2032,2451.0,2450.7,0.96681626]
[1750970211022,0.2032,2451.0,2450.8,0.96681626]
[1750970211221,0.2032,2451.0,2450.9,0.96681626]
[1750970211717,0.2032,2451.0,2450.7,0.96681626]
[1750970211919,0.2032,2451.0,2450.8,0.96681626]
[1750970212096,0.2032,2451.0,2450.9,0.96681626]
[1750970212303,0.2032,2451.0,2450.7,0.96681626]
[1750970212513,0.2032,2451.0,2450.8,0.96681626]
[1750970212714,0.2032,2451.0,2450.9,0.96681626]
[1750970213116,0.2032,2451.0,2450.6,0.204]
[1750970213303,0.2032,2451.0,2450.7,0.96709769]
[1750970213625,0.204,2450.9,2450.5,1.20671317]
[1750970213801,0.204,2450.9,2450.6,0.96699041]
[1750970213996,0.204,2450.9,2450.7,0.96699041]
[1750970214209,0.204,2450.9,2450.5,1.20671317]
[1750970214393,0.204,2450.9,2450.6,0.96695128]
[1750970214596,0.204,2450.9,2450.7,0.96695128]
[1750970214822,0.204,2450.9,2450.5,1.20671317]
[1750970215634,0.83,2450.8,2450.6,0.9669627]
[1750970215793,0.83,2450.8,2450.7,0.9669627]
[1750970215997,0.83,2450.8,2450.3,0.7845]
[1750970215998,4.91032283,2450.8,2450.3,1.20671317]
[1750970216329,0.204,2450.6,2450.4,0.96709671]
[1750970216531,0.204,2450.6,2450.5,0.96709671]
[1750970220319,0.754,2450.6,2450.5,0.96709671]
[1750970220720,0.754,2450.6,2450.1,1.20671317]
[1750970220936,0.204,2450.4,2450.2,0.9673644]
[1750970221147,0.204,2450.4,2450.3,0.9673644]
[1750970222526,0.204,2450.4,2450.2,0.9673644]
[1750970222725,0.204,2450.4,2450.3,0.9673644]
[1750970223153,0.204,2450.4,2450.1,0.9673644]
[1750970223324,0.204,2450.4,2450.2,0.9673644]
[1750970223657,0.204,2450.4,2450.3,0.9673644]
[1750970224156,0.204,2450.4,2450.1,0.9673644]
[1750970224352,1.0066,2450.4,2450.2,0.9673644]
[1750970224656,1.0066,2450.4,2450.3,0.9673644]
[1750970224838,5.85537771,2450.4,2450.1,0.9673644]
[1750970225159,0.204,2450.3,2450.2,0.96760411]
[1750970225655,4.28527316,2450.3,2449.9,0.002]
[1750970225857,0.204,2450.3,2450.0,0.96755358]
[1750970226057,0.204,2450.3,2450.1,0.96755358]
[1750970226249,1.21803358,2450.3,2449.9,0.002]
[1750970226551,0.204,2450.3,2450.0,0.96741982]
[1750970226752,0.204,2450.3,2449.9,0.002]
[1750970226956,0.204,2450.3,2450.0,0.96746617]
[1750970227164,0.204,2450.3,2449.9,0.002]
[1750970227461,0.204,2450.3,2450.0,0.96761744]
[1750970227628,0.204,2450.3,2449.9,0.002]
[1750970227829,0.204,2450.4,2450.0,10.38331232]
[1750970228140,8.074,2450.7,2450.3,8.38938783]
[1750970228537,7.87,2450.7,2450.6,8.38938783]
[1750970228742,0.204,2450.9,2450.5,8.59338783]
[1750970229884,7.87,2451.0,2450.7,0.204]
[1750970230034,4.90484631,2450.6,2450.2,0.204]
[1750970230228,0.55,2450.3,2449.9,0.002]
[1750970230548,5.65973265,2450.0,2449.9,0.002]
[1750970230737,6.90780591,2450.0,2449.9,0.002]
[1750970230945,4.64717326,2450.0,2449.9,0.002]
[1750970231143,8.72880591,2450.0,2449.9,0.002]
[1750970231786,4.64717326,2450.0,2449.9,0.002]
[1750970232087,2.8491,2450.0,2449.9,0.002]
[1750970232382,4.63129401,2450.3,2449.9,0.002]
[1750970232383,0.8241,2450.3,2449.9,0.002]
[1750970232556,0.204,2450.4,2449.9,1.41271317]
[1750970232761,16.82,2450.5,2450.0,1.20671317]
[1750970232961,16.82,2450.5,2450.1,0.204]
[1750970233184,6.82,2450.5,2450.1,0.204]
[1750970233692,0.204,2450.7,2450.2,0.204]
[1750970235982,0.204,2450.7,2450.1,0.7796]
[1750970235983,0.204,2450.6,2450.1,0.9836]
[1750970236483,8.074,2450.6,2450.1,0.9836]
[1750970238792,7.87,2450.6,2450.2,0.8326]
[1750970238999,0.204,2450.9,2450.5,0.204]
[1750970239150,0.204,2450.9,2450.6,0.8326]
[1750970241704,2.371,2451.3,2450.6,0.8326]
[1750970241857,0.2032,2451.1,2450.7,0.204]
[1750970242978,10.0,2451.4,2450.6,0.8326]
[1750970243169,4.89712093,2451.5,2450.8,0.204]
[1750970243170,0.2032,2451.3,2450.8,0.204]
[1750970243392,0.21297372,2451.8,2450.9,0.8273]
[1750970243393,6.82,2451.8,2450.9,0.8273]
[1750970243565,0.2032,2451.6,2451.1,0.2032]
[1750970244092,1.03184674,2452.2,2451.2,0.8273]
[1750970244292,0.2032,2451.9,2451.4,0.2032]
[1750970244799,4.28168486,2451.9,2451.4,0.2032]
[1750970244973,1.49546849,2451.9,2451.4,0.2032]
[1750970245172,11.29226849,2451.9,2451.4,0.2032]
[1750970245481,1.29226849,2451.9,2451.2,0.8273]
[1750970245692,0.55,2451.9,2451.2,0.8273]
[1750970246010,1.821,2452.1,2451.2,0.8273]
[1750970246215,4.62843413,2452.0,2451.2,0.8273]
[1750970246358,8.64,2452.1,2451.2,0.8273]
[1750970246359,4.07855254,2451.9,2451.2,0.8273]
[1750970247176,4.62839228,2452.0,2451.2,0.8273]
[1750970247372,6.44493113,2452.0,2451.2,1.09213]
[1750970248177,4.07847336,2451.9,2451.2,1.09213]
[1750970248978,6.44490873,2452.0,2451.2,1.09213]
[1750970249180,4.07856705,2451.9,2451.2,1.09213]
[1750970249385,6.44499082,2452.0,2451.2,1.09213]
[1750970249606,4.0784756,2451.9,2451.2,1.09213]
[1750970250311,6.44492744,2452.0,2451.2,1.09213]
[1750970251213,6.44491102,2452.0,2451.2,1.09213]
[1750970251710,1.91631177,2451.9,2451.2,1.09213]
[1750970251911,4.07863863,2451.8,2451.2,1.09213]
[1750970252207,1.91631177,2451.9,2451.2,1.09213]
[1750970252411,4.6283909,2452.0,2451.2,1.09213]
[1750970252599,0.55,2452.0,2451.2,1.09213]
[1750970253107,4.62832504,2452.0,2451.2,1.09213]
[1750970254091,7.87,2451.9,2451.2,1.09213]
[1750970255114,11.94848114,2451.9,2451.2,1.09213]
[1750970255293,0.2032,2451.7,2451.3,0.2032]
[1750970260928,7.87,2451.9,2451.2,0.8273]
[1750970261117,0.2032,2451.7,2451.3,0.2032]
[1750970263516,7.87,2451.9,2451.4,0.7684]
[1750970263729,7.87,2451.9,2451.6,0.2032]
[1750970263924,7.87,2451.9,2451.7,0.7684]
[1750970264447,7.87,2451.9,2451.1,11.20671317]
[1750970264448,8.0732,2451.9,2451.4,0.2032]
[1750970265420,4.07864401,2451.8,2451.4,0.2032]
[1750970266149,4.07883373,2451.7,2451.4,0.2032]
[1750970266354,0.2032,2451.5,2451.1,2.0222]
[1750970266657,0.2032,2451.5,2451.1,0.2032]
[1750970267435,0.2032,2451.5,2451.1,1.40991317]
[1750970267625,0.2032,2451.5,2451.1,0.2032]
[1750970268325,0.2032,2451.5,2451.1,1.97053958]
[1750970268953,0.2032,2451.5,2451.1,1.40991317]
[1750970269125,0.2032,2451.5,2451.1,0.2032]
[1750970269319,0.2032,2451.5,2451.1,1.40991317]
[1750970270155,10.82,2452.1,2451.3,8.3825829]
[1750970270332,0.2032,2451.9,2451.4,0.2032]
[1750970271047,0.2032,2451.9,2451.5,0.7787]
[1750970271653,6.815,2452.2,2451.5,0.7787]
[1750970271857,0.2032,2452.1,2451.7,0.2032]
[1750970273259,0.55,2452.1,2451.5,0.7787]
[1750970273459,0.2032,2452.0,2451.5,2.83616454]
[1750970273628,0.2032,2452.1,2451.7,0.2032]
[1750970274327,0.001,2452.2,2451.8,0.7787]
[1750970274637,0.001,2452.2,2452.1,0.7787]
[1750970275126,0.001,2452.2,2452.1,0.9819]
[1750970275326,0.001,2452.2,2452.1,1.38266132]
[1750970278260,0.001,2452.2,2452.1,1.68329358]
[1750970278778,0.001,2452.2,2452.1,2.58937449]
[1750970279457,0.001,2452.2,2452.1,1.38266132]
[1750970280731,0.001,2452.2,2451.8,2.23911317]
[1750970281467,0.001,2452.2,2451.8,1.0324]
[1750970281696,0.001,2452.2,2451.8,2.23911317]
[1750970281988,0.001,2452.2,2452.1,0.2032]
[1750970282132,0.001,2452.2,2452.1,1.0324]
[1750970282641,0.001,2452.2,2452.1,2.43811132]
[1750970285586,0.001,2452.2,2452.1,12.43811132]
[1750970285895,0.001,2452.2,2452.1,14.04706222]
[1750970286251,0.001,2452.2,2452.1,20.85706222]
[1750970286446,0.001,2452.2,2452.1,19.24811132]
[1750970286813,0.001,2452.2,2452.1,20.7645744]
[1750970287658,0.001,2452.2,2452.1,19.55985218]
[1750970287872,0.001,2452.2,2452.1,20.76483563]
[1750970288095,0.001,2452.2,2452.1,24.84297273]
[1750970288306,0.2214978,2453.3,2452.6,0.7749]
[1750970288470,0.2214978,2453.3,2452.7,10.2669553]
[1750970288802,0.2214978,2453.3,2452.9,0.2032]
[1750970289003,0.2214978,2453.3,2453.1,0.2032]
[1750970290080,0.2214978,2453.3,2452.7,9.89089751]
[1750970290287,0.4246978,2453.3,2452.8,0.2032]
[1750970290483,0.4246978,2453.3,2452.9,0.8299]
[1750970290697,0.001,2453.2,2452.9,0.8299]
[1750970290993,0.001,2453.2,2453.0,0.2032]
[1750970292796,0.001,2453.2,2452.7,9.4529]
[1750970293100,0.001,2453.2,2452.8,0.2032]
[1750970295000,4.07732594,2453.2,2452.8,0.2032]
[1750970295296,0.001,2453.2,2452.8,0.2032]
[1750970297698,0.001,2453.2,2452.8,1.86224571]
[1750970299089,0.001,2453.2,2452.9,0.8142]
[1750970299307,0.001,2453.2,2453.0,7.18177739]
[1750970299478,0.001,2453.2,2453.0,6.806]
[1750970300909,0.001,2453.2,2452.9,0.8142]
[1750970301111,0.001,2453.2,2452.0,3.77813327]
[1750970301112,4.88827466,2453.1,2452.6,1.20466685]
[1750970301310,4.88827466,2453.1,2452.2,0.8142]
[1750970301311,0.55,2452.8,2452.2,1.20466685]
[1750970301515,0.55,2452.6,2452.3,0.37637129]
[1750970301698,0.55,2452.6,2452.4,0.37637129]
[1750970301873,0.55,2452.6,2452.1,1.20466685]
[1750970302205,0.8118,2452.7,2452.2,0.37635537]
[1750970302404,0.8118,2452.7,2452.1,0.54428177]
[1750970302704,4.88900211,2452.7,2452.0,2.6292]
[1750970303004,0.8118,2452.7,2452.0,2.6292]
[1750970303566,0.8118,2452.7,2452.3,1.20466685]
[1750970303974,0.7524,2453.1,2452.4,10.37151822]
[1750970304311,0.7524,2453.1,2452.6,1.20466685]
[1750970305180,0.001,2453.2,2452.6,3.01966685]
[1750970305715,0.001,2453.2,2452.7,1.20466685]
[1750970306004,0.001,2453.2,2452.6,1.815]